[Event "Queen Rapid Challenge 2024"]
[Site "Bucharest"]
[Date "2024.03.10"]
[Round "3.8"]
[White "Cosma, Elena-Luminita"]
[Black "Petculescu, Diana-Silvana"]
[Result "1-0"]
[ECO "D30"]
[WhiteElo "2238"]
[BlackElo "1734"]
[Annotator "TA"]
[PlyCount "57"]
[EventDate "2024.03.09"]
[EventType "rapid"]
[EventCountry "ROU"]
[SourceTitle "playchess.com"]
[Source "ChessBase"]
[SourceQuality "1"]
[TimeControl "900+10"]

{[%evp 17,57,41,35,34,60,55,157,156,129,107,133,121,111,120,175,169,166,124,211,172,221,195,182,181,212,152,149,144,681,316,316,316,5481,752,29983,440,1222,905,29992,29993,29993,29994]} 1. d4 {[%emt 0:00:12]} Nf6 {[%emt 0:00:12]} 2. Nf3 {[%emt 0:00:06]} d5 {[%emt 0:00:08]} 3. g3 {[%emt 0:00:08]} e6 {[%emt 0:00:16]} 4. Bg2 {[%emt 0:00:07]} c5 {[%emt 0:00:14]} 5. c4 {[%emt 0:00:07]} Nc6 {[%emt 0:00:40]} 6. cxd5 {[%emt 0:00:08]} exd5 {[%emt 0:00:25]} 7. O-O {[%emt 0:00:09]} cxd4 {[%emt 0:00:57]} 8. Nxd4 {[%emt 0:00:08]} Bc5 {[%emt 0:01:52]} 9. Nb3 {[%emt 0:00:11]} Bb6 {[%emt 0:00:18]} 10. Bg5 {[%emt 0:00:26]} Be6 {[%emt 0:01:30]} 11. Nc3 {[%emt 0:00:29]} Ne7 {[%emt 0:01:57]} ({Better is} 11... O-O $14) 12. Bxf6 $16 {[%emt 0:00:50] White is clearly better.} gxf6 {[%emt 0:00:09]} 13. Na4 {[%emt 0:00:11]} Rc8 {[%emt 0:01:14]} 14. Rc1 {[%emt 0:01:28]} Rxc1 {[%emt 0:01:41]} 15. Qxc1 {[%emt 0:00:07]} Bd7 {[%emt 0:00:34]} (15... O-O $16 16. Qh6 Nf5) 16. Nxb6 {[%emt 0:03:09]} Qxb6 {[%emt 0:00:16]} 17. Rd1 {[%emt 0:00:07][%cal Oc1h6]} Qc6 {[%emt 0:01:29]} (17... O-O $16 18. Bxd5 Nxd5) 18. Qe3 {[%emt 0:02:08]} Qc2 {[%emt 0:01:49]} (18... Qe6 {might work better.} 19. Qxa7 (19. Bxd5 Nxd5 20. Rxd5 Qxe3 $16) 19... Qxe2) 19. Rc1 {[%emt 0:01:02]} Qxb2 {[%emt 0:00:23]} 20. Bxd5 {[%emt 0:00:11]} Qxa2 {[%emt 0:00:49]} 21. Bxb7 {[%emt 0:00:59]} Be6 {[%emt 0:00:30]} 22. Nd4 {[%emt 0:00:56] White is more active.} Qb2 $2 {[%emt 0:00:33][%mdl 8192] A mistake that costs the game.} (22... O-O $16 23. Qh6 Ng6) 23. Nxe6 {[%emt 0:01:29]} (23. Bc6+ $142 Nxc6 24. Nxe6 (24. Rxc6 O-O $18)) 23... fxe6 $18 {[%emt 0:00:15]} 24. Bf3 {[%emt 0:00:28] [#] Black must now prevent Bh5+.} Kf7 $2 {[%emt 0:00:19]} (24... h5 25. h4 e5) 25. Rc7 {[%emt 0:00:14]} (25. Bh5+ $142 Kf8 26. Rc7 Qb1+ 27. Kg2 Qb4 28. Qh6+ (28. Qxe6 Kg7 29. Rxe7+ Qxe7 30. Qxe7+ Kh6 31. Bf7 Rg8 32. Bxg8 Kg6 33. Qxh7+ Kg5 34. h4+ Kg4 35. Qg6#) 28... Kg8 29. Qxf6 (29. Rxa7 Qe4+ 30. Kh3 Qf5+ 31. g4 Qg6 32. Ra8+ Kf7 33. Bxg6+ hxg6 34. Qxh8 e5) 29... Qe4+ 30. Bf3) 25... h5 {[%emt 0:00:28]} 26. h4 {[%emt 0:00:24]} (26. Qc5 $142 Qb1+ 27. Kg2 Re8 28. Bxh5+ (28. Qxa7 Kf8 $18) 28... Kg8 29. Bxe8 Nf5 30. Bf7+ (30. Qxa7 Qe4+ 31. Kh3 Qb1 32. Bf7+ Kh7 33. Bh5+ Ne7 34. Rc5 Kh8 35. Qxe7 Qf5+ 36. Rxf5 exf5 37. Bg6 Kg8 38. Qh7+ Kf8 39. Qf7#) 30... Kh7 31. Bxe6+ (31. Rxa7 Qe4+ 32. Kh3 Qb1 33. Bh5+ Ng7 34. Qf8 Qf5+ 35. g4 Qg5) 31... Kg6 32. Bxf5+ (32. Qxa7 Qe4+ 33. Kh3 Qxe6 $18) 32... Qxf5 33. Qe7 (33. Qxa7 Qe4+ 34. Kh3 Qe6+ 35. g4 f5 36. Rg7+ Kf6 37. g5+ Ke5 38. Qc5+ Ke4)) 26... a5 {[%emt 0:00:24]} (26... Qb6 $142) 27. Qc5 {[%emt 0:00:13][%csl LRa5,LRe7,LRh5]} Qa1+ {[%emt 0:00:08]} 28. Kg2 {[%emt 0:00:08]} Re8 {[%emt 0:00:07]} 29. Bxh5+ {[%emt 0:00:09] Weighted Error Value: White=0.79/Black=1.23.  Loses game:     	---       	Black=1      Mistake:       	White=2     	Black=5      Inaccurate:     	---       	Black=3      OK:         	White=3     	Black=2} 1-0

[Event "Queen Rapid Challenge 2024"]
[Site "Bucharest"]
[Date "2024.03.10"]
[Round "3.9"]
[White "Maria, Lia-Alexandra"]
[Black "Pandelescu, Maria-Catalina"]
[Result "1-0"]
[ECO "D34"]
[WhiteElo "1996"]
[BlackElo "1701"]
[Annotator "NA RC"]
[PlyCount "50"]
[EventDate "2024.03.09"]
[EventType "rapid"]
[EventCountry "ROU"]
[SourceTitle "playchess.com"]
[Source "ChessBase"]
[SourceQuality "1"]
[TimeControl "900+10"]

1. Nf3 {[%emt 0:00:17]} d5 {[%emt 0:00:14]} 2. c4 {[%emt 0:00:06]} e6 {[%emt 0:00:12]} 3. g3 {[%emt 0:00:15]} c5 {[%emt 0:00:12]} 4. cxd5 {[%emt 0:00:22]} exd5 {[%emt 0:00:08]} 5. d4 {[%emt 0:00:08]} Nc6 {[%emt 0:00:18]} 6. Bg2 {[%emt 0:00:12]} Nf6 {[%emt 0:00:30]} 7. O-O {[%emt 0:00:12]} c4 {[%emt 0:00:34]} 8. Nc3 {[%emt 0:00:22]} Bb4 {[%emt 0:00:39]} 9. Bg5 {[%emt 0:00:25]} Bxc3 {[%emt 0:00:14]} 10. bxc3 {[%emt 0:00:07]} Be6 {[%emt 0:00:27]} 11. Nd2 {[%emt 0:00:29]} O-O {[%emt 0:02:27]} 12. e4 {[%emt 0:00:23]} Ne7 {[%emt 0:00:45]} 13. Bxf6 {[%emt 0:01:25]} gxf6 {[%emt 0:00:07]} 14. Qf3 {[%emt 0:00:08]} f5 {[%emt 0:00:33]} 15. e5 {[%emt 0:01:28]} b5 {[%emt 0:01:04]} 16. Qh5 {[%emt 0:01:28]} Ng6 {[%emt 0:01:41]} 17. Nf3 {[%emt 0:00:41]} f6 {[%emt 0:00:45]} 18. a4 {[%emt 0:01:16]} fxe5 {[%emt 0:02:32]} 19. dxe5 {[%emt 0:00:20]} bxa4 {[%emt 0:01:04]} 20. Ng5 {[%emt 0:00:33]} Qe7 {[%emt 0:00:59]} 21. Rxa4 {[%emt 0:00:58]} Qd7 {[%emt 0:01:03]} 22. Ra6 {[%emt 0:00:18]} Rae8 {[%emt 0:00:45]} 23. Rd6 {[%emt 0:00:22]} Qg7 {[%emt 0:01:40]} 24. Nxe6 {[%emt 0:00:10]} Qxe5 {[%emt 0:00:17]} 25. Nxf8 {[%emt 0:06:55]} Qxd6 {[%emt 0:00:00]} 1-0

[Event "Queen Rapid Challenge 2024"]
[Site "Bucharest"]
[Date "2024.03.10"]
[Round "3.10"]
[White "Didiliuc, Dariana-Gabriela"]
[Black "Mihalea, Maria-Ioana"]
[Result "1-0"]
[ECO "D15"]
[WhiteElo "1917"]
[BlackElo "1712"]
[Annotator "RC"]
[PlyCount "96"]
[EventDate "2024.03.09"]
[EventType "rapid"]
[EventCountry "ROU"]
[SourceTitle "playchess.com"]
[Source "ChessBase"]
[SourceQuality "1"]
[TimeControl "900+10"]

1. d4 {[%emt 0:00:12]} Nf6 {[%emt 0:00:11]} 2. c4 {[%emt 0:00:07]} c6 {[%emt 0:00:06]} 3. Nc3 {[%emt 0:00:09]} d5 {[%emt 0:00:07]} 4. e3 {[%emt 0:00:16]} a6 {[%emt 0:00:07]} 5. Nf3 {[%emt 0:00:14]} Bf5 {[%emt 0:00:15]} 6. Qb3 {[%emt 0:00:28]} Qd7 {[%emt 0:00:55]} 7. Ne5 {[%emt 0:00:20]} Qc7 {[%emt 0:00:44]} 8. cxd5 {[%emt 0:00:12]} e6 {[%emt 0:00:50]} 9. dxe6 {[%emt 0:00:51]} Bxe6 {[%emt 0:00:16]} 10. Bc4 {[%emt 0:00:08]} Bxc4 {[%emt 0:01:05]} 11. Qxc4 {[%emt 0:00:09]} Bd6 {[%emt 0:00:10]} 12. Nf3 {[%emt 0:00:29]} O-O {[%emt 0:00:34]} 13. O-O {[%emt 0:00:32]} Re8 {[%emt 0:01:14]} 14. Qd3 {[%emt 0:00:37]} c5 {[%emt 0:00:42]} 15. h3 {[%emt 0:01:53]} Nc6 {[%emt 0:00:33]} 16. a3 {[%emt 0:01:33]} Rad8 {[%emt 0:00:34]} 17. Qc2 {[%emt 0:02:13]} b5 {[%emt 0:03:55]} 18. dxc5 {[%emt 0:01:24]} Bxc5 {[%emt 0:00:07]} 19. Nxb5 {[%emt 0:00:09]} Qb6 {[%emt 0:00:10]} 20. Nc3 {[%emt 0:00:16]} Bd6 {[%emt 0:00:43]} 21. b4 {[%emt 0:01:09]} Ne5 {[%emt 0:01:09]} 22. Nd4 {[%emt 0:00:34]} Rc8 {[%emt 0:00:54]} 23. Bb2 {[%emt 0:00:41]} Nc4 {[%emt 0:01:09]} 24. Nce2 {[%emt 0:01:27]} Nxe3 {[%emt 0:00:54]} 25. Qd3 {[%emt 0:00:32]} Nxf1 {[%emt 0:00:15]} 26. Rxf1 {[%emt 0:00:07]} Be5 {[%emt 0:00:21]} 27. Kh1 {[%emt 0:00:31]} Rcd8 {[%emt 0:00:16]} 28. Qf5 {[%emt 0:00:40]} Bxd4 {[%emt 0:00:28]} 29. Nxd4 {[%emt 0:00:07]} Rxd4 {[%emt 0:00:11]} 30. Bxd4 {[%emt 0:00:27]} Qxd4 {[%emt 0:00:06]} 31. Qa5 {[%emt 0:00:06]} Qd3 {[%emt 0:00:26]} 32. Kg1 {[%emt 0:00:07]} h6 {[%emt 0:00:11]} 33. Qa4 {[%emt 0:00:27]} Rd8 {[%emt 0:00:11]} 34. Qa5 {[%emt 0:00:23]} Ne4 {[%emt 0:00:15]} 35. Qc7 {[%emt 0:00:12]} Nd2 {[%emt 0:00:18]} 36. Re1 {[%emt 0:00:10]} Nb3 {[%emt 0:00:18]} 37. Qc6 {[%emt 0:00:20]} Qd2 {[%emt 0:00:13]} 38. Re8+ {[%emt 0:00:16]} Rxe8 {[%emt 0:00:09]} 39. Qxe8+ {[%emt 0:00:06]} Kh7 {[%emt 0:00:06]} 40. Qxf7 {[%emt 0:00:06]} Qe1+ {[%emt 0:00:13]} 41. Kh2 {[%emt 0:00:06]} Qe5+ {[%emt 0:00:06]} 42. g3 {[%emt 0:00:06]} Nd4 {[%emt 0:00:18]} 43. Qc4 {[%emt 0:00:12]} Nf3+ {[%emt 0:00:16]} 44. Kg2 {[%emt 0:00:11]} Ne1+ {[%emt 0:00:10]} 45. Kf1 {[%emt 0:00:10]} Nf3 {[%emt 0:00:15]} 46. Qd3+ {[%emt 0:00:07]} g6 {[%emt 0:00:14]} 47. Qxf3 {[%emt 0:00:07]} Qa1+ {[%emt 0:00:06]} 48. Kg2 {[%emt 0:00:06]} Qb2 {[%emt 0:00:07]} 1-0

[Event "Queen Rapid Challenge 2024"]
[Site "Bucharest"]
[Date "2024.03.10"]
[Round "4.1"]
[White "Raeva, Elitsa"]
[Black "Bulmaga, Irina"]
[Result "0-1"]
[ECO "A48"]
[WhiteElo "2185"]
[BlackElo "2429"]
[Annotator "TA"]
[PlyCount "84"]
[EventDate "2024.03.09"]
[EventType "rapid"]
[EventCountry "ROU"]
[SourceTitle "playchess.com"]
[Source "ChessBase"]
[SourceQuality "1"]
[TimeControl "900+10"]

{[%evp 17,84,8,0,0,0,10,11,0,0,0,2,7,31,0,29,0,28,5,35,0,0,0,16,17,42,20,37,40,51,-24,-16,-46,-10,-126,-125,-443,-439,-439,-418,-384,-382,-380,-358,-342,-348,-333,-317,-341,-324,-333,-240,-240,-240,-210,-190,-29995,-851,-869,-613,-6223,-1049,-4810,-4810,-29995,-29996,-29996,-29997,-29997,-29998]} 1. d4 {[%emt 0:00:13]} Nf6 {[%emt 0:00:12]} 2. Nf3 {[%emt 0:00:07]} e6 {[%emt 0:00:07]} 3. Bf4 {[%emt 0:00:16]} b6 {[%emt 0:00:08]} 4. e3 {[%emt 0:00:09]} Bb7 {[%emt 0:00:07]} 5. Be2 {[%emt 0:00:07]} g6 {[%emt 0:00:23]} 6. h3 {[%emt 0:00:14]} Bg7 {[%emt 0:00:08]} 7. O-O {[%emt 0:00:09]} O-O {[%emt 0:00:10]} 8. Nbd2 {[%emt 0:00:22]} d6 {[%emt 0:00:09]} 9. c3 {[%emt 0:00:09]} Nbd7 {[%emt 0:00:15]} 10. Bg5 {[%emt 0:01:04]} h6 {[%emt 0:00:11]} 11. Bh4 {[%emt 0:00:06]} Qe7 {[%emt 0:00:23]} 12. Qc2 {[%emt 0:00:13] The position is equal.} e5 {[%emt 0:00:30]} 13. dxe5 {[%emt 0:01:06]} Nxe5 {[%emt 0:00:32]} 14. Rfe1 {[%emt 0:00:20]} a5 {[%emt 0:00:18]} (14... Nxf3+ {simplifies} 15. Bxf3 Bxf3 16. Bxf6 Bxf6 17. Nxf3 Qd7) 15. Rad1 {[%emt 0:00:09]} Rfe8 {[%emt 0:01:42]} 16. Nxe5 {[%emt 0:01:06]} dxe5 {[%emt 0:00:24]} (16... Qxe5 $5 17. Bg3 Qe6 $11) 17. e4 {[%emt 0:00:11]} Red8 {[%emt 0:00:44]} 18. Bf3 {[%emt 0:00:12]} Qe6 {[%emt 0:00:16]} 19. b3 {[%emt 0:00:38]} Rd7 {[%emt 0:02:47]} (19... g5 $5 20. Bg3 $8 h5 $11) 20. Nc4 {[%emt 0:00:58]} Rad8 {[%emt 0:00:16]} 21. Rxd7 {[%emt 0:02:32]} Rxd7 {[%emt 0:00:08]} 22. Bg3 {[%emt 0:00:06]} Qe8 {[%emt 0:01:49]} 23. Nxe5 {[%emt 0:00:46]} (23. Bxe5 $14 Re7 24. Bxf6 Bxf6 25. g3) 23... Re7 $11 {[%emt 0:00:22]} 24. Nc4 {[%emt 0:00:06]} Nxe4 {[%emt 0:00:39]} 25. Bxc7 {[%emt 0:03:00]} Ng5 {[%emt 0:00:40]} 26. Bxb7 $4 {[%emt 0:01:09][%mdl 8192] [#] This move loses the game for White.} Rxe1+ $19 {[%emt 0:00:08]} 27. Kh2 {[%emt 0:00:06]} Qe7 {[%emt 0:00:15]} 28. Bg3 {[%emt 0:01:51]} Qxb7 {[%emt 0:00:08]} 29. f4 {[%emt 0:00:06]} Re7 {[%emt 0:01:30]} 30. fxg5 {[%emt 0:00:06]} hxg5 {[%emt 0:00:07]} 31. Qd2 {[%emt 0:00:22]} Rd7 {[%emt 0:01:15]} 32. Qxg5 {[%emt 0:00:21]} b5 {[%emt 0:00:08]} 33. Nd6 {[%emt 0:00:20]} Qc6 {[%emt 0:00:26]} 34. Qxb5 {[%emt 0:00:19]} Rxd6 {[%emt 0:00:10]} 35. Qb8+ {[%emt 0:00:06]} Bf8 {[%emt 0:00:06] ( -> ...Rd2)} 36. b4 $2 {[%emt 0:00:23] [#]} (36. Bxd6 $19 Qxd6+ 37. Qxd6 Bxd6+ 38. Kg1) 36... Kg7 {[%emt 0:00:19]} 37. b5 {[%emt 0:00:09]} Qb6 {[%emt 0:00:12]} (37... Qxc3 $2 {loses.} 38. Bxd6 Bxd6+ 39. Qxd6 $18) 38. Qe8 {[%emt 0:01:01]} Re6 {[%emt 0:00:15]} 39. Qd7 {[%emt 0:00:13]} Bd6 {[%emt 0:00:15]} 40. a4 {[%emt 0:00:15]} Bxg3+ {[%emt 0:00:15] Black mates.} 41. Kxg3 {[%emt 0:00:06]} Qe3+ {[%emt 0:00:07]} 42. Kh2 {[%emt 0:00:07]} Qf4+ {[%emt 0:00:07] Weighted Error Value: White=0.79/Black=0.49.  Loses game:     	White=1     	---        Mistake:       	White=3     	Black=1      Inaccurate:     	White=4     	Black=4      OK:         	White=10    	Black=7      Best:        	White=3     	Black=3} 0-1

[Event "Queen Rapid Challenge 2024"]
[Site "Bucharest"]
[Date "2024.03.10"]
[Round "4.2"]
[White "Obada, Ema"]
[Black "Cosman, Andreea-Marioara"]
[Result "1-0"]
[ECO "B90"]
[WhiteElo "1976"]
[BlackElo "2115"]
[Annotator "RC"]
[PlyCount "83"]
[EventDate "2024.03.09"]
[EventType "rapid"]
[EventCountry "ROU"]
[SourceTitle "playchess.com"]
[Source "ChessBase"]
[SourceQuality "1"]
[TimeControl "900+10"]

1. e4 {[%emt 0:00:12]} c5 {[%emt 0:00:11]} 2. Nf3 {[%emt 0:00:07]} d6 {[%emt 0:00:06]} 3. d4 {[%emt 0:00:13]} Nf6 {[%emt 0:00:07]} 4. Nc3 {[%emt 0:00:13]} cxd4 {[%emt 0:00:07]} 5. Nxd4 {[%emt 0:00:07]} a6 {[%emt 0:00:06]} 6. f3 {[%emt 0:00:07]} e5 {[%emt 0:00:07]} 7. Nb3 {[%emt 0:00:07]} Be6 {[%emt 0:00:07]} 8. Be3 {[%emt 0:00:07]} Nbd7 {[%emt 0:00:09]} 9. g4 {[%emt 0:00:06]} b5 {[%emt 0:00:22]} 10. a4 {[%emt 0:00:19]} b4 {[%emt 0:00:17]} 11. Nd5 {[%emt 0:00:06]} Bxd5 {[%emt 0:00:25]} 12. exd5 {[%emt 0:00:07]} Nb6 {[%emt 0:00:07]} 13. Bg1 {[%emt 0:00:07]} Qc7 {[%emt 0:01:58]} 14. Bxb6 {[%emt 0:04:53]} Qxb6 {[%emt 0:00:08]} 15. Qd2 {[%emt 0:00:12]} Be7 {[%emt 0:01:25]} 16. O-O-O {[%emt 0:00:25]} O-O {[%emt 0:00:21]} 17. Kb1 {[%emt 0:00:32]} Nd7 {[%emt 0:02:33]} 18. h4 {[%emt 0:01:41]} Nc5 {[%emt 0:00:16]} 19. Nxc5 {[%emt 0:00:46]} Qxc5 {[%emt 0:00:09]} 20. Bd3 {[%emt 0:01:17]} Rfb8 {[%emt 0:00:54]} 21. b3 {[%emt 0:00:40]} Qc3 {[%emt 0:02:01]} 22. Qc1 {[%emt 0:02:18]} e4 {[%emt 0:01:17]} 23. Bxe4 {[%emt 0:00:19]} Bf6 {[%emt 0:00:07]} 24. Ka2 {[%emt 0:00:06]} Rb5 {[%emt 0:02:26]} 25. g5 {[%emt 0:00:28]} Bd4 {[%emt 0:00:17]} 26. Rd3 {[%emt 0:01:02]} Qc5 {[%emt 0:00:07]} 27. Rh2 {[%emt 0:00:51]} Ra5 {[%emt 0:01:59]} 28. Rg2 {[%emt 0:00:39]} Rb8 {[%emt 0:00:10]} 29. Qf4 {[%emt 0:00:20]} Be5 {[%emt 0:00:46]} 30. Qf5 {[%emt 0:00:22]} g6 {[%emt 0:00:07]} 31. Qd7 {[%emt 0:00:08]} Qc8 {[%emt 0:00:19]} 32. Qxc8+ {[%emt 0:00:25]} Rxc8 {[%emt 0:00:07]} 33. Kb1 {[%emt 0:00:19]} Rac5 {[%emt 0:00:15]} 34. Rd1 {[%emt 0:00:24]} Kg7 {[%emt 0:00:23]} 35. Rf1 {[%emt 0:00:13]} f5 {[%emt 0:00:15]} 36. gxf6+ {[%emt 0:00:13]} Kxf6 {[%emt 0:00:07]} 37. f4 {[%emt 0:00:08]} Bd4 {[%emt 0:00:31]} 38. f5 {[%emt 0:00:12]} Ke5 {[%emt 0:00:07]} 39. Re2 {[%emt 0:00:27]} Rf8 {[%emt 0:00:13]} 40. Bg2+ {[%emt 0:00:13]} Kf6 {[%emt 0:00:11]} 41. fxg6+ {[%emt 0:00:08]} Kg7 {[%emt 0:00:07]} 42. Re7+ {[%emt 0:00:11]} 1-0

[Event "Queen Rapid Challenge 2024"]
[Site "Bucharest"]
[Date "2024.03.10"]
[Round "4.3"]
[White "Iordache, Alexia-Andreea"]
[Black "Batagan, Ilinca-Petra"]
[Result "0-1"]
[ECO "C72"]
[WhiteElo "1866"]
[BlackElo "1915"]
[Annotator "NA RC"]
[PlyCount "120"]
[EventDate "2024.03.09"]
[EventType "rapid"]
[EventCountry "ROU"]
[SourceTitle "playchess.com"]
[Source "ChessBase"]
[SourceQuality "1"]
[TimeControl "900+10"]

1. e4 {[%emt 0:00:12]} e5 {[%emt 0:00:13]} 2. Nf3 {[%emt 0:00:06]} Nc6 {[%emt 0:00:07]} 3. Bb5 {[%emt 0:00:06]} a6 {[%emt 0:00:08]} 4. Ba4 {[%emt 0:00:06]} d6 {[%emt 0:00:06]} 5. O-O {[%emt 0:00:09]} Bd7 {[%emt 0:00:08]} 6. d3 {[%emt 0:00:11]} g6 {[%emt 0:00:17]} 7. a3 {[%emt 0:00:23]} Bg7 {[%emt 0:00:17]} 8. Be3 {[%emt 0:00:17]} Nf6 {[%emt 0:00:16]} 9. Nc3 {[%emt 0:00:28]} O-O {[%emt 0:00:20]} 10. h3 {[%emt 0:00:30]} h6 {[%emt 0:03:05]} 11. Bb3 {[%emt 0:01:18]} Kh7 {[%emt 0:00:19]} 12. d4 {[%emt 0:00:54]} Nh5 {[%emt 0:00:37]} 13. dxe5 {[%emt 0:02:45]} Nxe5 {[%emt 0:00:29]} 14. Nxe5 {[%emt 0:00:11]} Bxe5 {[%emt 0:01:25]} 15. Qe1 {[%emt 0:06:47]} Nf4 {[%emt 0:00:54]} 16. Bxf4 {[%emt 0:01:05]} Bxf4 {[%emt 0:00:07]} 17. Nd5 {[%emt 0:00:28]} Qg5 {[%emt 0:03:18]} 18. Kh1 {[%emt 0:01:00]} c6 {[%emt 0:00:46]} 19. Nb6 {[%emt 0:00:33]} Rad8 {[%emt 0:01:43]} 20. Nxd7 {[%emt 0:00:06]} Rxd7 {[%emt 0:00:06]} 21. Rd1 {[%emt 0:00:37]} Be5 {[%emt 0:00:26]} 22. c3 {[%emt 0:00:24]} Qf4 {[%emt 0:00:31]} 23. g3 {[%emt 0:00:07]} Qf3+ {[%emt 0:00:08]} 24. Kg1 {[%emt 0:00:16]} f5 {[%emt 0:00:25]} 25. Bc2 {[%emt 0:00:09]} f4 {[%emt 0:00:10]} 26. Rd3 {[%emt 0:00:11]} Qh5 {[%emt 0:00:19]} 27. g4 {[%emt 0:00:06]} Qh4 {[%emt 0:00:44]} 28. Rf3 {[%emt 0:00:16]} h5 {[%emt 0:00:07]} 29. gxh5 {[%emt 0:00:12]} gxh5 {[%emt 0:00:06]} 30. Kh2 {[%emt 0:00:07]} Rg7 {[%emt 0:00:10]} 31. Rg1 {[%emt 0:00:06]} Rfg8 {[%emt 0:00:07]} 32. Rxg7+ {[%emt 0:00:13]} Rxg7 {[%emt 0:00:06]} 33. Qf1 {[%emt 0:00:12]} Qg5 {[%emt 0:00:26]} 34. Bb3 {[%emt 0:00:06]} Qg6 {[%emt 0:00:29]} 35. Bc2 {[%emt 0:00:06]} d5 {[%emt 0:00:24]} 36. exd5 {[%emt 0:00:20]} Qxc2 {[%emt 0:00:07]} 37. dxc6 {[%emt 0:00:17]} Qe4 {[%emt 0:00:20]} 38. Qd3 {[%emt 0:00:01]} Qxd3 {[%emt 0:00:09]} 39. Rxd3 {[%emt 0:00:05]} bxc6 {[%emt 0:00:19]} 40. b4 {[%emt 0:00:15]} Kg6 {[%emt 0:00:19]} 41. c4 {[%emt 0:00:11]} Kf5 {[%emt 0:00:06]} 42. a4 {[%emt 0:00:07]} Ke4 {[%emt 0:00:13]} 43. Rb3 {[%emt 0:00:11]} f3+ {[%emt 0:00:09]} 44. Kh1 {[%emt 0:00:06]} Rd7 {[%emt 0:00:09]} 45. Re3+ {[%emt 0:00:11]} Kf4 {[%emt 0:00:12]} 46. Re1 {[%emt 0:00:12]} Rd2 {[%emt 0:00:20]} 47. Kg1 {[%emt 0:00:09]} Bd4 {[%emt 0:01:18]} 48. Rf1 Rb2 {[%emt 0:00:00]} 49. b5 {[%emt 0:00:11]} axb5 {[%emt 0:00:00]} 50. axb5 {[%emt 0:00:17]} cxb5 {[%emt 0:00:00]} 51. cxb5 {[%emt 0:00:06]} Rxb5 {[%emt 0:00:00]} 52. Rd1 {[%emt 0:00:08]} Bxf2+ {[%emt 0:00:00]} 53. Kxf2 {[%emt 0:00:08]} Rb2+ {[%emt 0:00:05]} 54. Kg1 {[%emt 0:00:23]} Kg3 {[%emt 0:00:06]} 55. Rf1 {[%emt 0:00:13]} Rg2+ {[%emt 0:00:19]} 56. Kh1 {[%emt 0:00:05]} Rf2 {[%emt 0:00:23]} 57. Rg1+ {[%emt 0:00:13]} Kxh3 {[%emt 0:00:07]} 58. Rb1 {[%emt 0:00:11]} Rh2+ {[%emt 0:00:11]} 59. Kg1 {[%emt 0:00:06]} f2+ {[%emt 0:00:06]} 60. Kf1 {[%emt 0:00:06]} Rh1+ {[%emt 0:00:06]} 0-1

[Event "Queen Rapid Challenge 2024"]
[Site "Bucharest"]
[Date "2024.03.10"]
[Round "4.4"]
[White "Sgircea, Silvia-Raluca"]
[Black "Rata, Anamaria"]
[Result "1-0"]
[ECO "A13"]
[WhiteElo "2224"]
[BlackElo "1790"]
[Annotator "RC"]
[PlyCount "55"]
[EventDate "2024.03.09"]
[EventType "rapid"]
[EventCountry "ROU"]
[SourceTitle "playchess.com"]
[Source "ChessBase"]
[SourceQuality "1"]
[TimeControl "900+10"]

1. Nf3 {[%emt 0:00:15]} d5 {[%emt 0:00:15]} 2. e3 {[%emt 0:00:07]} Nf6 {[%emt 0:00:09]} 3. c4 {[%emt 0:00:06]} e6 {[%emt 0:00:18]} 4. Nc3 {[%emt 0:00:08]} Be7 {[%emt 0:00:20]} 5. b3 {[%emt 0:00:09]} O-O {[%emt 0:00:15]} 6. Bb2 {[%emt 0:00:06]} Nbd7 {[%emt 0:00:31]} 7. Qc2 {[%emt 0:00:10]} c6 {[%emt 0:02:18]} 8. Be2 {[%emt 0:00:16]} b6 {[%emt 0:00:10]} 9. Rg1 {[%emt 0:00:33]} e5 {[%emt 0:04:38]} 10. g4 {[%emt 0:03:22]} e4 {[%emt 0:03:12]} 11. Nd4 {[%emt 0:00:08]} Ne5 {[%emt 0:00:27]} 12. g5 {[%emt 0:00:55]} Ne8 {[%emt 0:01:39]} 13. cxd5 {[%emt 0:00:23]} cxd5 {[%emt 0:00:08]} 14. O-O-O {[%emt 0:01:55]} a5 {[%emt 0:00:46]} 15. f4 {[%emt 0:01:41]} exf3 {[%emt 0:00:47]} 16. Nxf3 {[%emt 0:00:07]} Nc6 {[%emt 0:01:18]} 17. Bd3 {[%emt 0:02:02]} Nb4 {[%emt 0:00:27]} 18. Bxh7+ {[%emt 0:00:48]} Kh8 {[%emt 0:00:19]} 19. Qb1 {[%emt 0:00:06]} g6 {[%emt 0:00:15]} 20. Bxg6 {[%emt 0:00:08]} fxg6 {[%emt 0:00:08]} 21. Qxg6 {[%emt 0:00:08]} Ng7 {[%emt 0:00:11]} 22. a3 {[%emt 0:03:07]} Bf5 {[%emt 0:00:13]} 23. Qh6+ {[%emt 0:00:07]} Kg8 {[%emt 0:00:07]} 24. axb4 {[%emt 0:00:07]} axb4 {[%emt 0:00:12]} 25. Nh4 {[%emt 0:01:51]} bxc3 {[%emt 0:00:09]} 26. dxc3 {[%emt 0:00:06]} Ba3 {[%emt 0:00:12]} 27. g6 {[%emt 0:00:29]} Bxb2+ {[%emt 0:00:10]} 28. Kxb2 {[%emt 0:00:06]} 1-0